bitfinex/quotes_SOLUSD_20220114
["timestamp","ask_amount","ask_price","bid_price","bid_amount"]
[1642128553373,10.4171,147.59,147.51,10.1662]
[1642128553575,10.4171,147.59,147.51,16.4162]
[1642128553770,2.711,147.6,147.51,16.4162]
[1642128554673,3.88516849,147.59,147.51,16.4162]
[1642128555273,12.8758,147.61,147.51,16.4162]
[1642128555575,10.1658,147.61,147.51,16.4162]
[1642128556373,10.4158,147.61,147.51,16.4162]
[1642128556575,10.4158,147.61,147.52,2.71]
[1642128556975,10.4158,147.61,147.52,2.96]
[1642128557973,2.71,147.6,147.52,0.25]
[1642128558175,10.1666,147.59,147.52,0.25]
[1642128558376,2.71,147.58,147.51,16.4162]
[1642128558594,2.71,147.59,147.51,16.4162]
[1642128558778,2.71,147.6,147.51,16.4162]
[1642128558976,2.96,147.6,147.51,16.4162]
[1642128560178,10.1667,147.59,147.51,16.4162]
[1642128560377,2.71,147.6,147.51,16.4162]
[1642128560576,2.71,147.61,147.52,2.71]
[1642128560775,2.71,147.61,147.52,12.8753]
[1642128560978,2.71,147.61,147.52,13.1253]
[1642128561386,2.71,147.61,147.52,36.7144]
[1642128562179,10.1661,147.6,147.52,36.7144]
[1642128562580,2.71,147.61,147.52,36.7144]
[1642128563981,35.4112,147.62,147.52,36.7144]
[1642128564183,35.6612,147.62,147.52,36.7144]
[1642128564379,41.6612,147.62,147.52,36.7144]
[1642128564980,41.6612,147.62,147.52,42.7144]
[1642128565581,35.6612,147.62,147.52,42.4644]
[1642128566181,35.6612,147.62,147.52,39.7544]
[1642128566984,35.6612,147.62,147.52,40.0044]
[1642128567808,13.1252,147.62,147.52,40.0044]
[1642128568009,2.96,147.62,147.52,40.2644]
[1642128568610,2.71,147.63,147.52,40.2644]
[1642128568810,2.71,147.65,147.53,9.78]
[1642128569010,12.8725,147.66,147.57,10.1618]
[1642128569211,12.8725,147.66,147.58,28.89983564]
[1642128569612,2.71,147.66,147.58,29.14983564]
[1642128570313,2.71,147.66,147.58,45.31123564]
[1642128570512,2.709,147.68,147.58,45.57123564]
[1642128570711,2.709,147.68,147.58,113.46123564]
[1642128570912,2.709,147.68,147.58,123.24123564]
[1642128571110,2.709,147.68,147.58,123.31123564]
[1642128571712,2.709,147.7,147.59,2.709]
[1642128571910,12.8674,147.72,147.63,10.158]
[1642128572113,12.8674,147.72,147.64,24.04737972]
[1642128572313,18.8674,147.72,147.64,24.04737972]
[1642128572715,18.8674,147.72,147.64,24.29737972]
[1642128574016,19.1174,147.72,147.64,24.29737972]
[1642128575017,3.8639764,147.71,147.64,24.29737972]
[1642128576019,16.1584,147.72,147.64,24.29737972]
[1642128577821,16.1584,147.72,147.64,0.25]
[1642128578019,12.8668,147.71,147.62,22.9959]
[1642128578419,12.8668,147.71,147.62,23.2459]
[1642128578818,13.1168,147.71,147.62,23.2459]
[1642128579020,13.1168,147.71,147.62,46.76075736]
[1642128579621,13.1168,147.71,147.62,56.91935736]
[1642128580120,13.1168,147.71,147.62,46.76075736]
[1642128580420,10.4088,147.71,147.62,23.2459]
[1642128581521,10.4088,147.71,147.61,0.07]
[1642128581722,102.74317249,147.71,147.6,0.25]
[1642128581922,10.1621,147.66,147.6,0.25]
[1642128582121,10.1621,147.66,147.58,32.5338]
[1642128582319,13.1211,147.66,147.58,32.5338]
[1642128582523,10.4121,147.66,147.58,32.5338]
[1642128582721,10.4121,147.66,147.58,58.60498734]
[1642128583521,10.4121,147.66,147.58,58.85498734]
[1642128585126,10.4121,147.66,147.58,32.7838]
[1642128585326,13.1211,147.66,147.58,32.7838]
[1642128585827,10.4121,147.66,147.58,32.7838]
[1642128586054,10.4121,147.66,147.58,64.75005341]
[1642128587431,16.4121,147.66,147.58,64.75005341]
[1642128590636,10.4121,147.66,147.58,64.75005341]
[1642128591836,16.4121,147.66,147.58,64.75005341]
[1642128592036,10.4121,147.66,147.58,64.75005341]
[1642128593041,10.4121,147.66,147.58,54.97005341]
[1642128593974,16.4121,147.66,147.58,54.97005341]
[1642128594273,10.4121,147.66,147.58,54.97005341]
[1642128595977,16.4121,147.66,147.58,54.97005341]
[1642128596179,6.0,147.66,147.58,54.97005341]
[1642128596379,6.0,147.66,147.58,67.34105341]
[1642128596581,12.7878,147.7,147.59,9.78]
[1642128596779,2.709,147.7,147.6,24.1986]
[1642128596978,2.709,147.7,147.61,2.709]
[1642128597179,2.709,147.7,147.61,8.709]
[1642128597378,2.709,147.7,147.62,10.1582]
[1642128597578,2.959,147.7,147.62,16.4082]
[1642128597780,2.959,147.7,147.62,40.4767]
[1642128597984,2.959,147.7,147.62,34.4767]
[1642128598183,2.959,147.7,147.62,24.3185]
[1642128598390,0.25,147.7,147.62,24.3185]
[1642128598681,2.708,147.69,147.62,24.3185]
[1642128599082,2.958,147.69,147.62,24.3185]
[1642128599683,0.25,147.69,147.62,24.3185]
[1642128600082,2.959,147.72,147.62,24.3185]
[1642128600282,8.959,147.72,147.62,24.3185]
[1642128600891,3.87442241,147.71,147.62,24.3185]
[1642128601087,2.708,147.7,147.62,24.3185]
[1642128601487,2.958,147.7,147.62,24.3185]
[1642128602088,3.87442241,147.69,147.62,24.3185]
[1642128602486,4.12442241,147.69,147.62,24.3185]
[1642128603091,0.25,147.69,147.62,24.3185]
[1642128603587,10.16,147.69,147.62,24.3185]
[1642128603790,10.41,147.69,147.62,24.3185]
[1642128608792,0.25,147.69,147.62,24.3185]
[1642128608993,2.958,147.7,147.62,24.3185]
[1642128609794,13.1173,147.7,147.62,24.3185]
[1642128612095,3.88300411,147.69,147.62,24.3185]
[1642128612328,14.04300411,147.69,147.62,24.3185]
[1642128612495,14.29300411,147.69,147.62,24.0685]
[1642128612696,15.9884766,147.69,147.59,2.709]
[1642128612895,2.709,147.68,147.58,54.72005341]
[1642128613095,27.5007,147.68,147.58,31.96625341]
[1642128613301,1.69547249,147.67,147.58,31.96625341]
[1642128613498,2.709,147.66,147.58,31.96625341]
[1642128613796,27.2507,147.68,147.58,37.96625341]
[1642128613996,27.2507,147.68,147.58,38.22625341]
[1642128614195,3.88300411,147.69,147.58,38.47625341]
[1642128614397,3.88300411,147.66,147.6,10.1599]
[1642128614597,3.88300411,147.66,147.6,16.4099]
[1642128614900,3.88300411,147.66,147.6,94.3399]
[1642128615097,5.79293447,147.69,147.6,96.03537249]
[1642128615297,5.79293447,147.69,147.61,27.3993]
[1642128615498,5.79293447,147.73,147.62,9.78]
[1642128615696,5.79293447,147.73,147.64,27.40770329]
[1642128615899,5.79293447,147.73,147.65,26.5756]
[1642128616097,5.79293447,147.73,147.65,42.98]
[1642128616297,5.79293447,147.73,147.65,43.24]
[1642128617403,5.79293447,147.77,147.65,53.02]
[1642128617602,15.94723447,147.77,147.65,53.02]
[1642128617800,2.708,147.76,147.65,53.02]
[1642128618204,2.708,147.76,147.65,54.71547249]
[1642128618804,2.708,147.76,147.66,67.89]
[1642128619004,5.79293447,147.78,147.71,10.1519]
[1642128619205,5.79293447,147.78,147.73,28.32797224]
[1642128619604,5.79293447,147.78,147.73,34.83797224]
[1642128620234,5.79293447,147.8,147.73,34.83797224]
[1642128621241,5.79293447,147.8,147.73,44.98877224]
[1642128621837,3.87965344,147.8,147.73,44.98877224]
[1642128622543,3.87965344,147.8,147.73,54.76877224]
[1642128622739,3.87965344,147.8,147.73,62.57877224]
[1642128623338,3.87965344,147.8,147.77,10.1458]
[1642128623546,3.87965344,147.8,147.79,23.85841473]
[1642128623938,3.87965344,147.8,147.79,24.10841473]
[1642128624138,3.87965344,147.81,147.79,24.10841473]
[1642128624739,3.87965344,147.81,147.8,4.36433783]
[1642128624942,3.87965344,147.81,147.8,4.61433783]
[1642128625139,3.87965344,147.81,147.8,4.36433783]
[1642128625340,3.87965344,147.81,147.8,4.61433783]
[1642128625539,3.87965344,147.81,147.8,4.36433783]
[1642128625839,3.87965344,147.84,147.8,4.36433783]
[1642128626142,2.705,147.83,147.8,4.36433783]
[1642128626739,2.955,147.83,147.8,4.36433783]
[1642128626941,6.58465344,147.83,147.8,4.36433783]
[1642128627542,1.69572,147.82,147.8,1.33647997]
[1642128627744,1.69572,147.82,147.77,31.60964236]
[1642128627944,5.57537344,147.82,147.77,31.85964236]
[1642128628144,3.87965344,147.82,147.77,42.00774236]
[1642128629947,6.58465344,147.83,147.77,42.00774236]
[1642128630145,3.87965344,147.83,147.77,42.00774236]
[1642128632347,3.87965344,147.83,147.77,41.75774236]
[1642128632548,4.12965344,147.83,147.76,24.5298]
[1642128632749,2.706,147.82,147.73,9.78]
[1642128632948,2.956,147.82,147.73,9.78]
[1642128633549,2.956,147.82,147.74,26.01208919]
[1642128634151,10.1517,147.8,147.74,26.01208919]
[1642128634350,2.706,147.79,147.74,26.01208919]
[1642128634550,0.25,147.79,147.74,26.01208919]
[1642128635050,2.707,147.78,147.74,26.01208919]
[1642128635250,2.707,147.78,147.7,24.4467]
[1642128635450,2.957,147.78,147.7,30.4467]
[1642128635749,0.25,147.78,147.7,30.4467]
[1642128635949,2.707,147.77,147.7,30.6967]
[1642128636149,2.707,147.77,147.71,26.44327434]
[1642128636452,2.707,147.77,147.71,32.69327434]
[1642128636649,28.26265344,147.8,147.71,35.40027434]
[1642128636650,30.96965344,147.8,147.71,35.40027434]
[1642128637052,31.21965344,147.8,147.71,35.40027434]
[1642128637450,13.1092,147.8,147.71,35.40027434]
[1642128637651,13.1092,147.8,147.71,32.69327434]
[1642128638352,16.98885344,147.8,147.71,32.69327434]
[1642128638590,14.28185344,147.8,147.71,32.69327434]
[1642128638955,10.4022,147.8,147.71,32.69327434]
[1642128639858,10.153,147.78,147.71,32.69327434]
[1642128640455,2.707,147.79,147.71,32.69327434]
[1642128640657,2.957,147.79,147.71,32.69327434]
[1642128640861,2.957,147.79,147.71,26.69327434]
[1642128641059,0.25,147.79,147.71,32.69327434]
[1642128641258,2.707,147.78,147.71,32.69327434]
[1642128641859,2.707,147.78,147.71,42.84517434]
[1642128642557,2.707,147.78,147.71,32.69327434]
[1642128643059,12.8599,147.78,147.71,32.69327434]
[1642128643560,13.1099,147.78,147.71,26.69327434]
[1642128643761,10.4029,147.78,147.71,26.69327434]
[1642128647598,2.707,147.79,147.71,26.69327434]
[1642128648301,6.58665344,147.79,147.71,26.69327434]
[1642128649203,2.707,147.79,147.71,26.69327434]
[1642128650204,12.8595,147.79,147.71,26.69327434]
[1642128654206,16.73915344,147.79,147.71,26.69327434]
[1642128656512,6.58665344,147.79,147.71,36.84487434]
[1642128657514,3.87965344,147.79,147.71,36.84487434]
[1642128657914,29.61105344,147.8,147.71,36.84487434]
[1642128658115,26.90405344,147.8,147.72,23.0751]
[1642128658317,26.90405344,147.8,147.73,10.1505]
[1642128658516,26.90405344,147.8,147.73,10.4005]
[1642128660919,3.87965344,147.8,147.73,10.4005]
[1642128663921,3.87965344,147.8,147.73,0.25]
[1642128663922,14.03135344,147.8,147.73,0.25]
[1642128664323,14.03135344,147.8,147.72,23.3251]
[1642128666126,14.03135344,147.8,147.72,33.4763]
[1642128666324,14.03135344,147.8,147.72,23.3251]
[1642128667723,1.69147496,147.79,147.72,33.4763]
[1642128669327,1.69147496,147.79,147.73,2.707]
[1642128669529,5.79293447,147.84,147.75,130.89]
[1642128669726,5.79293447,147.84,147.8,25.0207103]
[1642128670126,5.79293447,147.84,147.8,25.2707103]
[1642128670326,8.49893447,147.89,147.8,25.2707103]
[1642128670526,5.79293447,147.89,147.8,25.2707103]
[1642128670728,0.02,147.87,147.8,25.2707103]
[1642128671126,0.02,147.87,147.8,35.4162103]
[1642128672029,0.02,147.87,147.8,41.4162103]
[1642128672455,1.93897142,147.85,147.8,41.4162103]
[1642128673255,1.93897142,147.84,147.8,41.4162103]
[1642128674555,1.93897142,147.84,147.8,41.6762103]
[1642128674756,1.93897142,147.84,147.8,44.3812103]
[1642128675856,1.93897142,147.85,147.8,44.3812103]
[1642128677158,1.93897142,147.85,147.8,41.6762103]
[1642128677858,1.93897142,147.85,147.8,41.4162103]
[1642128678060,1.93897142,147.85,147.8,41.6762103]
[1642128679362,1.93897142,147.85,147.8,51.4562103]
[1642128681663,1.93897142,147.85,147.8,51.1962103]
[1642128682267,1.93897142,147.85,147.8,9.78]
[1642128682464,2.705,147.84,147.8,9.78]
[1642128682664,2.705,147.84,147.76,9.78]
[1642128682964,2.955,147.84,147.76,15.78]
[1642128683365,2.705,147.84,147.77,28.9710412]
[1642128683565,2.705,147.84,147.77,34.9710412]
[1642128683765,12.8543,147.84,147.77,34.9710412]
[1642128683967,1.93897142,147.81,147.77,35.2210412]
[1642128684368,1.93897142,147.81,147.77,34.9710412]
[1642128685172,1.93897142,147.82,147.77,34.9710412]
[1642128685571,1.93897142,147.82,147.77,35.2210412]
[1642128688969,1.93897142,147.82,147.77,29.2210412]
[1642128689971,1.93897142,147.82,147.77,0.25]
[1642128690172,1.93897142,147.82,147.75,22.6977]
[1642128690370,2.706,147.81,147.76,0.25]
[1642128691573,2.706,147.81,147.75,49.48473484]
[1642128691871,10.1525,147.79,147.75,49.48473484]
[1642128692073,1.93897142,147.8,147.75,49.48473484]
[1642128692473,1.93897142,147.8,147.75,49.23473484]
[1642128693371,12.09047142,147.8,147.75,49.23473484]
[1642128693775,12.09047142,147.8,147.75,22.9477]
[1642128696482,12.34047142,147.8,147.72,2.706]
[1642128696679,2.707,147.79,147.72,2.706]
[1642128696880,10.155,147.76,147.72,2.706]
[1642128697079,2.707,147.75,147.72,2.706]
[1642128697282,1.69572,147.74,147.72,2.706]
[1642128697883,1.69572,147.74,147.69,28.94549634]
[1642128698382,1.93897142,147.77,147.69,29.19549634]
[1642128698809,1.93897142,147.77,147.69,35.19549634]
[1642128699110,12.09307142,147.77,147.69,45.34889634]
[1642128699312,11.59307142,147.77,147.69,45.34889634]
[1642128699812,1.43897142,147.77,147.69,45.34889634]
[1642128700013,1.43897142,147.77,147.7,24.1582]
[1642128700211,1.43897142,147.77,147.7,34.3109]
[1642128700411,1.43897142,147.77,147.7,40.5609]
[1642128700812,35.7231,147.79,147.7,40.5609]
[1642128701111,33.2661,147.79,147.7,40.5609]
[1642128701711,10.1527,147.79,147.7,40.5609]
[1642128703013,25.6719,147.8,147.71,9.78]
[1642128703212,22.9649,147.8,147.72,33.8915]
[1642128703414,22.9649,147.8,147.73,2.707]
[1642128703614,10.1514,147.81,147.73,2.707]
[1642128703814,10.1514,147.81,147.73,8.957]
[1642128704616,10.15,147.83,147.73,19.1072]
[1642128704818,10.15,147.83,147.75,29.4150277]
[1642128705017,10.15,147.83,147.75,29.6650277]
[1642128709125,10.15,147.83,147.75,39.8145277]
[1642128710925,10.15,147.83,147.75,29.6650277]
[1642128712025,10.15,147.83,147.75,39.8143277]
[1642128712227,2.707,147.84,147.75,39.8143277]
[1642128712426,2.726,147.87,147.75,55.8543277]
[1642128712626,26.9954,147.87,147.76,23.538]
[1642128713029,26.9954,147.87,147.76,29.788]
[1642128713626,24.2894,147.87,147.77,2.706]
[1642128714031,24.2894,147.87,147.77,8.956]
[1642128714234,34.4367,147.87,147.78,10.1467]
[1642128714635,34.4367,147.87,147.79,24.6775]
[1642128715035,34.4367,147.87,147.79,24.9275]
[1642128716239,34.4367,147.87,147.79,35.074]
[1642128717665,34.4367,147.87,147.79,24.9275]
[1642128718867,0.02,147.87,147.81,26.52007154]
[1642128719069,0.02,147.87,147.81,125.61547154]
[1642128720170,0.02,147.87,147.82,10.1446]
[1642128720368,0.02,147.87,147.83,23.9377]
[1642128720672,0.02,147.87,147.83,30.1877]
[1642128721270,0.02,147.87,147.83,40.3311]
[1642128721472,0.02,147.87,147.83,40.5911]
[1642128721873,0.02,147.87,147.83,108.4811]
[1642128722070,0.02,147.87,147.83,40.5911]
[1642128722671,0.02,147.87,147.83,50.3711]
[1642128722871,0.02,147.87,147.84,2.705]
[1642128723071,0.02,147.87,147.85,14.50593783]
[1642128723470,0.02,147.87,147.85,20.75593783]
[1642128724473,0.02,147.87,147.85,21.01593783]
[1642128724672,8.53584758,147.95,147.87,30.08752507]
[1642128724871,8.53584758,147.95,147.88,10.1399]
[1642128725074,8.53584758,147.95,147.88,16.3899]
[1642128725273,0.03791311,147.95,147.88,16.3899]
[1642128725473,0.03791311,147.95,147.88,6.25]
[1642128725673,0.03791311,147.95,147.88,0.25]
[1642128726074,3.91407316,147.95,147.88,0.25]
[1642128726285,9.91407316,147.95,147.87,54.91052507]
[1642128726675,20.05537316,147.95,147.87,54.91052507]
[1642128727076,3.87616005,147.94,147.87,30.33752507]
[1642128727277,2.704,147.93,147.87,30.33752507]
[1642128727477,2.954,147.93,147.87,30.33752507]
[1642128728276,10.1445,147.91,147.87,0.25]
[1642128728480,10.1445,147.91,147.86,2.955]
[1642128728677,10.1445,147.91,147.86,0.25]
[1642128729078,10.1445,147.91,147.85,10.03]
[1642128730179,16.1445,147.91,147.85,10.03]
[1642128730485,16.1445,147.91,147.85,0.25]
[1642128730984,16.1445,147.91,147.83,23.9851]
[1642128734584,16.1445,147.91,147.82,25.71786091]
[1642128734585,19.0995,147.91,147.81,2.704]
[1642128734785,28.8795,147.91,147.76,9.78]
[1642128735085,10.1497,147.84,147.77,24.5593]
[1642128735287,33.8322,147.87,147.77,34.7075]
[1642128735487,2.705,147.86,147.78,23.05669593]
[1642128735688,2.705,147.89,147.78,35.54169593]
[1642128735887,2.705,147.89,147.79,22.8335]
[1642128736117,25.5242,147.9,147.79,29.0935]
[1642128736316,6.0,147.89,147.79,29.3435]
[1642128736715,25.5242,147.9,147.79,29.3435]
[1642128736916,31.5242,147.9,147.79,29.3435]
[1642128737115,41.67,147.9,147.8,10.146]
[1642128737515,41.67,147.9,147.8,16.396]
[1642128737717,41.67,147.9,147.81,24.3183]
[1642128738118,35.67,147.9,147.81,24.5683]
[1642128739015,35.92,147.9,147.81,24.5683]
[1642128739716,35.67,147.9,147.81,24.5683]
[1642128740120,35.67,147.9,147.81,34.7137]
[1642128740319,32.965,147.9,147.82,2.705]
[1642128740518,32.965,147.9,147.82,2.955]
[1642128742220,33.215,147.9,147.82,2.955]
[1642128742621,2.705,147.89,147.82,2.955]
[1642128742820,12.8511,147.89,147.82,2.955]
[1642128743926,12.8511,147.89,147.82,0.25]
[1642128744326,12.8511,147.89,147.81,24.5683]
[1642128744529,13.1011,147.89,147.81,24.5683]
[1642128750635,22.8192,147.9,147.82,2.705]
[1642128750835,2.705,147.92,147.82,2.705]
[1642128751038,15.57293447,147.93,147.84,27.96222207]
[1642128751237,5.79293447,147.93,147.87,10.141]
[1642128751444,5.79293447,147.93,147.87,10.391]
[1642128751640,8.705,147.94,147.87,10.391]
[1642128751838,2.705,147.94,147.87,10.391]
[1642128752039,2.705,147.94,147.87,16.651]
[1642128753141,0.03791311,147.95,147.87,16.651]
[1642128753341,0.03791311,147.95,147.88,24.4226]
[1642128753541,0.03791311,147.95,147.91,10.1381]
[1642128753937,0.03791311,147.95,147.91,10.3881]
[1642128755871,0.03791311,147.95,147.91,0.25]
[1642128756073,0.03791311,147.95,147.9,26.99551848]
[1642128756477,0.03791311,147.95,147.9,0.25]
[1642128756976,0.03791311,147.95,147.88,24.6726]
[1642128757782,8.37391311,147.95,147.88,24.6726]
[1642128757980,8.37391311,147.95,147.88,34.8128]
[1642128758178,11.07791311,147.95,147.88,24.4226]
[1642128758979,8.37391311,147.95,147.88,24.4226]
[1642128759581,8.37391311,147.95,147.88,24.6726]
[1642128759979,14.37391311,147.95,147.88,24.6726]
[1642128760579,14.37391311,147.95,147.88,34.8132]
[1642128764994,6.03791311,147.95,147.88,34.8132]
[1642128765393,0.03791311,147.95,147.88,34.8132]
[1642128766619,10.17951311,147.95,147.88,24.6726]
[1642128767019,10.42951311,147.95,147.88,24.4226]
[1642128767222,2.704,147.94,147.88,24.4226]
[1642128767420,2.704,147.94,147.86,2.704]
[1642128767620,2.954,147.94,147.86,2.704]
[1642128767823,8.954,147.94,147.86,2.704]
[1642128768423,10.1435,147.93,147.86,2.704]
[1642128768623,2.704,147.92,147.84,34.8562]
[1642128768822,2.704,147.92,147.84,40.8562]
[1642128769024,2.704,147.92,147.84,41.1062]
[1642128770127,12.8478,147.92,147.84,30.9632]
[1642128770325,13.0978,147.92,147.84,30.9632]
[1642128772128,12.8478,147.92,147.84,30.9632]
[1642128773332,19.0948,147.92,147.84,30.9632]
[1642128773532,19.3448,147.92,147.84,30.9632]
[1642128773931,25.3448,147.92,147.84,30.9632]
[1642128775335,25.3448,147.92,147.84,24.9632]
[1642128775933,25.0948,147.92,147.84,24.9632]
[1642128776134,18.8478,147.92,147.84,24.9632]
[1642128776935,12.8478,147.92,147.84,24.9632]
[1642128777365,12.8478,147.92,147.84,27.6672]
[1642128777741,18.8478,147.92,147.84,27.6672]
[1642128779440,18.8478,147.92,147.84,24.9632]
[1642128779642,18.8478,147.92,147.84,35.1065]
[1642128780442,12.8478,147.92,147.84,35.1065]
[1642128782043,12.8478,147.92,147.84,24.9632]
[1642128782242,26.4458,147.92,147.84,24.9632]
[1642128783048,18.8478,147.92,147.84,24.9632]
[1642128783245,6.0,147.92,147.84,35.1066]
[1642128783449,28.14009197,147.93,147.84,35.1066]
[1642128783650,3.87629197,147.93,147.84,35.1066]
[1642128783849,4.12629197,147.93,147.84,41.1066]
[1642128784872,2.704,147.92,147.84,41.1066]
[1642128785675,2.704,147.92,147.84,41.3666]
[1642128787879,2.704,147.92,147.84,39.67592576]
[1642128789378,2.954,147.93,147.84,39.67592576]
[1642128789578,8.954,147.93,147.84,39.67592576]
[1642128789780,2.954,147.93,147.84,39.67592576]
[1642128789978,8.954,147.93,147.84,39.67592576]
[1642128790486,2.954,147.93,147.84,39.67592576]
[1642128792885,2.954,147.93,147.84,39.41592576]
[1642128793782,2.954,147.93,147.84,33.41592576]
[1642128794484,6.83029197,147.93,147.84,33.41592576]
[1642128794686,4.12629197,147.93,147.84,33.41592576]
[1642128795290,14.26939197,147.93,147.84,33.41592576]
[1642128795989,20.26939197,147.93,147.84,33.41592576]
[1642128796287,14.26939197,147.93,147.84,33.41592576]
[1642128796688,10.3931,147.93,147.84,33.41592576]
[1642128797188,10.1451,147.9,147.84,23.02252576]
[1642128797390,18.6001,147.9,147.84,0.25]
[1642128797689,18.6001,147.9,147.82,27.0854]
[1642128797890,2.705,147.89,147.82,27.0854]
[1642128798492,2.705,147.89,147.82,26.8354]
[1642128798890,2.705,147.91,147.82,24.1314]
[1642128799089,2.955,147.91,147.82,24.1314]
[1642128799291,10.1461,147.89,147.82,24.1314]
[1642128799691,10.1461,147.89,147.82,24.3814]
[1642128800291,13.0999,147.91,147.82,24.3814]
[1642128800490,22.97619197,147.91,147.82,24.3814]
[1642128801494,19.0999,147.91,147.82,24.3814]
[1642128803196,22.97619197,147.91,147.82,24.3814]
[1642128803396,22.72619197,147.91,147.82,24.3814]
[1642128803993,18.8499,147.91,147.82,24.3814]
[1642128804195,18.8499,147.91,147.82,34.5263]
[1642128805995,18.8499,147.91,147.82,37.2313]
[1642128809100,16.1449,147.91,147.82,37.2313]
[1642128810102,10.1449,147.91,147.82,37.2313]
[1642128811436,10.1449,147.91,147.82,27.0864]
[1642128811731,10.3949,147.91,147.82,27.0864]
[1642128812530,2.705,147.9,147.82,27.0864]
[1642128812732,10.146,147.89,147.82,27.0864]
[1642128812930,6.58129197,147.91,147.82,27.0864]
[1642128813831,2.705,147.91,147.82,27.0864]
[1642128814232,12.8497,147.91,147.82,34.5261]
[1642128815533,12.8497,147.91,147.82,37.2311]
[1642128816740,12.8497,147.91,147.82,27.0864]
[1642128816942,13.0997,147.91,147.82,27.0864]
[1642128817438,12.8497,147.91,147.82,27.0864]
[1642128818040,2.705,147.91,147.82,43.2312]
[1642128818740,23.933,147.92,147.82,43.2312]
[1642128818941,14.01979197,147.93,147.82,43.2312]
[1642128819146,20.01979197,147.93,147.82,43.2312]
[1642128819544,1.93810684,147.91,147.82,43.2312]
[1642128821347,1.93810684,147.91,147.82,37.2312]
[1642128821545,1.93810684,147.91,147.82,34.5262]
[1642128822349,4.64310684,147.91,147.82,34.5262]
[1642128822549,1.93810684,147.89,147.82,34.5262]
[1642128822946,1.93810684,147.89,147.83,2.705]
[1642128823147,1.93810684,147.89,147.83,12.8492]
[1642128823347,1.93810684,147.9,147.83,13.0992]
[1642128824748,1.93810684,147.9,147.84,22.6327]
[1642128824949,1.93810684,147.9,147.84,33.0256]
[1642128826548,1.93810684,147.91,147.84,33.0256]
[1642128828050,1.93810684,147.91,147.84,33.26454548]
[1642128830052,1.93810684,147.91,147.84,39.52454548]
[1642128830252,1.93810684,147.91,147.85,2.704]
[1642128830451,1.93810684,147.91,147.89,25.85038445]
[1642128830652,1.93810684,147.91,147.9,4.36433783]
[1642128831053,1.93810684,147.91,147.9,4.61433783]
[1642128831857,1.93810684,147.91,147.9,14.75323783]
[1642128832054,3.87629197,147.94,147.9,14.75323783]
[1642128832055,1.93810684,147.94,147.9,14.75323783]
[1642128832455,1.93810684,147.94,147.9,4.61433783]
[1642128833658,1.93810684,147.94,147.9,4.36433783]
[1642128834057,1.93810684,147.94,147.9,4.61433783]
[1642128834458,1.93810684,147.93,147.9,4.61433783]
[1642128835658,67.89,147.91,147.87,0.004]
[1642128835858,67.89,147.91,147.78,25.20216365]
[1642128835859,7.05,147.83,147.78,5.48206365]
[1642128836060,12.486,147.82,147.78,5.48206365]
[1642128836458,9.78,147.82,147.78,5.48206365]
[1642128837357,7.05,147.83,147.78,5.48206365]
[1642128837561,7.05,147.83,147.75,25.6423411]
[1642128837758,0.00159274,147.86,147.76,67.89]
[1642128837961,0.00159274,147.86,147.79,1.69547249]
[1642128838163,0.00159274,147.86,147.8,80.375]
[1642128838357,0.00159274,147.86,147.81,26.50086666]
[1642128838559,0.00159274,147.86,147.82,9.78]
[1642128838959,0.00159274,147.86,147.82,16.29]
[1642128839160,0.00159274,147.86,147.82,10.03]
[1642128841262,0.00159274,147.86,147.82,9.78]
[1642128842668,0.00159274,147.86,147.82,10.03]
[1642128843870,0.00159274,147.86,147.79,9.78]
[1642128844070,2.705,147.85,147.79,9.78]
[1642128844469,2.955,147.85,147.79,9.78]